lending/lending_fUSD_20240110
["ID","MTS","AMOUNT","RATE_DAILY","PERIOD"]
[311146414,1704930666041,-544.66,0.00043287,30]
[311146415,1704930666051,-1352.01,0.00043287,30]
[311146416,1704930666061,-980.16,0.00043287,30]
[311146417,1704930666072,-500.0,0.00043287,30]
[311146418,1704930666081,-353.01,0.00043287,30]
[311146419,1704930666091,-607.7,0.00043287,30]
[311146420,1704930666101,-500.0,0.00043287,30]
[311146421,1704930666111,-1117.31,0.00043287,30]
[311146422,1704930666121,-507.48,0.00043287,30]
[311146423,1704930666131,-758.69,0.00043287,30]
[311146424,1704930666141,-506.09,0.00043287,30]
[311146425,1704930666151,-746.81,0.00043287,30]
[311146426,1704930666162,-532.71,0.00043287,30]
[311146427,1704930666172,-584.0,0.00043287,30]
[311146428,1704930666182,-818.52,0.00043287,30]
[311146429,1704930666192,-544.62,0.00043287,30]
[311146430,1704930666202,-701.9,0.00043287,30]
[311146431,1704930666215,-1156.27,0.00043287,30]
[311146432,1704930666224,-500.0,0.00043287,30]
[311146433,1704930666234,-969.46,0.00043287,30]
[311146434,1704930666243,-1923.82,0.00043287,30]
[311146435,1704930666253,-535.15,0.00043287,30]
[311146436,1704930666262,-500.0,0.00043287,30]
[311146437,1704930666272,-522.94,0.00043287,30]
[311146438,1704930666281,-500.0,0.00043287,30]
[311146439,1704930666291,-1192.59,0.00043287,30]
[311146440,1704930666300,-669.83,0.00043287,30]
[311146441,1704930666310,-500.0,0.00043287,30]
[311146442,1704930666319,-695.51,0.00043287,30]
[311146443,1704930666329,-500.0,0.00043287,30]
[311146444,1704930666342,-668.02,0.00043287,30]
[311146445,1704930666352,-552.24,0.00043287,30]
[311146446,1704930666361,-1038.02,0.00043287,30]
[311146447,1704930666371,-1139.63,0.00043287,30]
[311146448,1704930666382,-300.0,0.00043288,5]
[311146449,1704930666392,-300.0,0.00043288,5]
[311146450,1704930666402,-43292.70765349,0.000433,30]
[311146451,1704930666412,-1000.0,0.000433,2]
[311146452,1704930666422,-185.92843094,0.0004337,18]
[311146453,1704930666433,-939.46,0.00043373,2]
[311146454,1704930666443,-800.52,0.00043373,2]
[311146455,1704930666452,-3371.0,0.0004339,3]
[311146456,1704930666463,-150.1,0.000434,2]
[311146457,1704930666472,-1953.45,0.000434,7]
[311146458,1704930666482,-450.0,0.00043436,10]
[311146459,1704930666491,-167838.74631286,0.0004345,7]
[311146460,1704930666501,-302.0,0.00043457,4]
[311146461,1704930666510,-55808.4016683,0.0004347,2]
[311146462,1704930666520,-1786.9417183,0.0004347,2]
[311146463,1704930666530,-3589.7294679,0.0004347,2]
[311146464,1704930666541,-69485.6528883,0.0004347,2]
[311146465,1704930666551,-16224.9585416,0.0004347,2]
[311146466,1704930666560,-306.24,0.00043496,2]
[311146467,1704930666570,-9262.7978648,0.000435,10]
[311146468,1704930666580,-115322.05999999,0.000435,27]
[311146469,1704930666589,-14978.39337988,0.000435,120]
[311146470,1704930666599,-320134.5383763,0.000435,14]
[311146471,1704930666610,-3833.28,0.000435,7]
[311146472,1704930666619,-150.0,0.000435,43]
[311146473,1704930666629,-1037.6631936,0.000435,8]
[311146474,1704930666638,-159.6581026,0.00043554,7]
[311146475,1704930666648,-21190.0,0.00043559,30]
[311146476,1704930666658,-2022.4,0.00043561,30]
[311146477,1704930666667,-500.0,0.00043561,30]
[311146478,1704930666677,-685.92,0.00043561,30]
[311146479,1704930666687,-688.82,0.00043561,30]
[311146480,1704930666697,-721.23,0.00043561,30]
[311146481,1704930666707,-524.91,0.00043561,2]
[311146482,1704930666720,-699.67,0.00043561,30]
[311146483,1704930666730,-554.25,0.00043561,30]
[311146484,1704930666739,-557.24,0.00043561,30]
[311146485,1704930666749,-544.66,0.00043561,30]
[311146486,1704930666759,-1352.01,0.00043561,30]
[311146487,1704930666769,-980.16,0.00043561,30]
[311146488,1704930666779,-500.0,0.00043561,30]
[311146489,1704930666789,-500.0,0.00043561,30]
[311146490,1704930666798,-1117.31,0.00043561,30]
[311146491,1704930666807,-507.48,0.00043561,30]
[311146492,1704930666816,-758.69,0.00043561,30]
[311146493,1704930666826,-506.09,0.00043561,30]
[311146494,1704930666838,-746.81,0.00043561,30]
[311146495,1704930666847,-532.71,0.00043561,30]
[311146496,1704930666856,-584.0,0.00043561,30]
[311146497,1704930666866,-818.52,0.00043561,30]
[311146498,1704930666876,-544.62,0.00043561,30]
[311146499,1704930666885,-701.9,0.00043561,30]
[311146500,1704930666895,-1156.27,0.00043561,30]
[311146501,1704930666907,-500.0,0.00043561,30]
[311146502,1704930666917,-969.46,0.00043561,30]
[311146503,1704930666930,-1923.82,0.00043561,30]
[311146504,1704930666945,-535.15,0.00043561,30]
[311146505,1704930666955,-500.0,0.00043561,30]
[311146506,1704930666967,-522.94,0.00043561,30]
[311146507,1704930666977,-500.0,0.00043561,30]
[311146508,1704930666988,-1192.59,0.00043561,30]
[311146509,1704930666998,-669.83,0.00043561,30]
[311146510,1704930667008,-500.0,0.00043561,30]
[311146511,1704930667018,-695.51,0.00043561,30]
[311146512,1704930667037,-471.58,0.00043561,30]
[311146513,1704930667047,-668.02,0.00043561,30]
[311146514,1704930667057,-552.24,0.00043561,30]
[311146515,1704930667068,-1038.02,0.00043561,30]
[311146516,1704930667078,-1139.63,0.00043561,30]
[311146517,1704930667088,-150.38353361,0.00043589,7]
[311146518,1704930667099,-481.1,0.00043589,2]
[311146519,1704930667116,-395.66,0.00043589,2]
[311146520,1704930667127,-300.0,0.00043589,5]
[311146521,1704930667138,-300.0,0.00043589,5]
[311146522,1704930667149,-1037.6631932,0.000436,8]
[311146523,1704930667158,-150.38353361,0.00043614,7]
[311146524,1704930667175,-150.99155862,0.00043643,20]
[311146525,1704930667185,-1000.0,0.00043677,2]
[311146526,1704930667204,-5000.0,0.0004368,21]
[311146527,1704930667218,-900.31250836,0.0004368,120]
[311146528,1704930667229,-152.9028419,0.00043691,7]
[311146529,1704930667244,-1953.45,0.000437,7]
[311146530,1704930667254,-1619.2475471,0.000437,2]
[311146531,1704930667265,-156306.26309511,0.000437,11]
[311146532,1704930667275,-150.30443858,0.0004374,5]
[311146533,1704930667285,-8435.27037656,0.00043742,2]
[311146534,1704930667296,-2048.0,0.00043755,10]
[311146535,1704930667306,-2029.85483321,0.00043755,10]
[311146536,1704930667322,-400.0,0.0004377,3]
[311146537,1704930667337,-300.0,0.0004377,3]
[311146538,1704930667348,-300.0,0.00043784,2]
[311146539,1704930667359,-283.08249671,0.000438,10]
[311146540,1704930667370,-14036.5740371,0.000438,14]
[311146541,1704930667381,-65375.18767554,0.000438,10]
[311146542,1704930667393,-1275.40922914,0.000438,30]
[311146543,1704930667403,-157.49,0.000438,4]
[311146544,1704930667413,-157.49,0.000438,4]
[311146545,1704930667423,-157.49,0.000438,4]
[311146546,1704930667432,-157.49,0.000438,4]
[311146547,1704930667442,-157.49,0.000438,4]
[311146548,1704930667452,-157.49,0.000438,4]
[311146549,1704930667462,-157.49,0.000438,4]
[311146550,1704930667474,-157.49,0.000438,4]
[311146551,1704930667483,-3833.28,0.000438,7]
[311146552,1704930667494,-5500.0,0.000438,30]
[311146553,1704930667504,-1355.0,0.000438,30]
[311146554,1704930667514,-8000.0,0.000438,5]
[311146555,1704930667524,-558.00849819,0.00043815,10]
[311146556,1704930667534,-424.5,0.0004382,2]
[311146557,1704930667543,-205.0,0.00043835,13]
[311146558,1704930667553,-500.0,0.00043835,30]
[311146559,1704930667563,-611.0218883,0.00043835,30]
[311146560,1704930667574,-500.0,0.00043835,30]
[311146561,1704930667583,-500.0,0.00043835,4]
[311146562,1704930667593,-500.0,0.00043835,4]
[311146563,1704930667603,-500.0,0.00043835,4]
[311146564,1704930667622,-500.0,0.00043835,4]
[311146565,1704930667635,-500.0,0.00043835,4]
[311146566,1704930667657,-500.0,0.00043835,4]
[311146567,1704930667669,-500.0,0.00043835,4]
[311146568,1704930667679,-500.0,0.00043835,4]
[311146569,1704930667688,-505.83383182,0.00043835,4]
[311146570,1704930667698,-2022.4,0.00043835,30]
[311146571,1704930667708,-500.0,0.00043835,30]
[311146572,1704930667721,-770.3,0.00043835,7]
[311146573,1704930667731,-5000.0,0.00043835,30]
[311146574,1704930667740,-5000.0,0.00043835,31]
[311146575,1704930667750,-3040.10415142,0.00043835,32]
[311146576,1704930667759,-8000.0,0.00043835,120]
[311146577,1704930667769,-685.92,0.00043835,30]
[311146578,1704930667780,-688.82,0.00043835,30]
[311146579,1704930667790,-721.23,0.00043835,30]
[311146580,1704930667800,-524.91,0.00043835,2]
[311146581,1704930667811,-699.67,0.00043835,30]
[311146582,1704930667822,-554.25,0.00043835,30]
[311146583,1704930667832,-557.24,0.00043835,30]
[311146584,1704930667842,-544.66,0.00043835,30]
[311146585,1704930667852,-1352.01,0.00043835,30]
[311146586,1704930667863,-980.16,0.00043835,30]
[311146587,1704930667874,-500.0,0.00043835,30]
[311146588,1704930667884,-500.0,0.00043835,30]
[311146589,1704930667894,-1117.31,0.00043835,30]
[311146590,1704930667905,-507.48,0.00043835,30]
[311146591,1704930667915,-758.69,0.00043835,30]
[311146592,1704930667928,-506.09,0.00043835,30]
[311146593,1704930667939,-746.81,0.00043835,30]
[311146594,1704930667950,-532.71,0.00043835,30]
[311146595,1704930667960,-584.0,0.00043835,30]
[311146596,1704930667975,-818.52,0.00043835,30]
[311146597,1704930667987,-544.62,0.00043835,30]
[311146598,1704930667998,-701.9,0.00043835,30]
[311146599,1704930668009,-1156.27,0.00043835,30]
[311146600,1704930668019,-500.0,0.00043835,30]
[311146601,1704930668030,-969.46,0.00043835,30]
[311146602,1704930668041,-1923.82,0.00043835,30]
[311146603,1704930668051,-500.0,0.00043835,30]
[311146604,1704930668062,-535.15,0.00043835,30]
[311146605,1704930668073,-522.94,0.00043835,30]
[311146606,1704930668084,-500.0,0.00043835,30]
[311146607,1704930668094,-1192.59,0.00043835,30]
[311146608,1704930668105,-669.83,0.00043835,30]
[311146609,1704930668115,-500.0,0.00043835,30]
[311146610,1704930668126,-695.51,0.00043835,30]
[311146611,1704930668137,-668.02,0.00043835,30]
[311146612,1704930668292,-552.24,0.00043835,30]
[311146613,1704930668303,-1038.02,0.00043835,30]
[311146614,1704930668315,-1139.63,0.00043835,30]
[311146615,1704930668325,-800.0,0.00043836,30]
[311146616,1704930668337,-206.148342,0.00043836,30]
[311146617,1704930668348,-400.93,0.00043836,2]
[311146618,1704930668360,-939.46,0.00043836,2]
[311146619,1704930668371,-939.46,0.00043836,2]
[311146620,1704930668383,-400.93,0.00043836,2]
[311146621,1704930668394,-400.93,0.00043836,2]
[311146622,1704930668405,-939.46,0.00043836,2]
[311146623,1704930668415,-400.93,0.00043836,2]
[311146624,1704930668426,-500.0,0.00043836,14]
[311146625,1704930668437,-153.84,0.00043839,2]
[311146626,1704930668448,-6949.0,0.0004389,3]
[311146627,1704930668459,-300.0,0.0004389,5]
[311146628,1704930668478,-300.0,0.0004389,5]
[311146629,1704930668489,-216.0,0.000439,7]
[311146630,1704930668500,-150.0,0.000439,18]
[311146631,1704930668511,-1219.09583537,0.000439,30]
[311146632,1704930668522,-2310.5951701,0.000439,6]
[311146633,1704930668534,-300.68,0.000439,2]
[311146634,1704930668545,-1664.71026171,0.00043917,4]
[311146635,1704930668557,-500.0,0.00043917,30]
[311146636,1704930668568,-500.0,0.00043917,30]
[311146637,1704930668579,-500.0,0.00043917,30]
[311146638,1704930668589,-500.0,0.00043917,30]
[311146639,1704930668600,-159.57466415,0.0004395,120]
[311146640,1704930668611,-4885.1,0.00043951,99]
[311146641,1704930668621,-496166.59699247,0.00043956,7]
[311146642,1704930668632,-153.72803979,0.00043967,7]
[311146643,1704930668643,-150.0,0.0004397,120]
[311146644,1704930668653,-407.77,0.00043973,2]
[311146645,1704930668664,-293.76,0.00043973,2]
[311146646,1704930668675,-150.0,0.00043973,2]
[311146647,1704930668686,-150.0,0.00043973,2]
[311146648,1704930668697,-150.0,0.00043973,2]
[311146649,1704930668709,-407.77,0.00043973,2]
[311146650,1704930668729,-293.76,0.00043973,2]
[311146651,1704930668738,-150.0,0.00043973,2]
[311146652,1704930668748,-407.77,0.00043973,2]
[311146653,1704930668758,-293.76,0.00043973,2]
[311146654,1704930668769,-150.0,0.00043973,2]
[311146655,1704930668779,-150.0,0.00043973,2]
[311146656,1704930668790,-407.77,0.00043973,2]
[311146657,1704930668799,-293.76,0.00043973,2]
[311146658,1704930668810,-150.0,0.00043973,2]
[311146659,1704930668820,-150.0,0.00043973,2]
[311146660,1704930668833,-150.0,0.00043973,2]
[311146661,1704930668843,-407.77,0.00043973,2]
[311146662,1704930668853,-150.0,0.00043973,2]
[311146663,1704930668870,-293.76,0.00043973,2]
[311146664,1704930668881,-781.07,0.00043973,2]
[311146665,1704930668891,-150.0,0.00043973,2]
[311146666,1704930668901,-833.99,0.00043977,5]
[311146667,1704930668919,-229.76,0.0004398,120]
[311146668,1704930668930,-150.0,0.0004398,120]
[311146669,1704930668945,-398.37,0.0004398,120]
[311146670,1704930668956,-43268.81,0.0004398,120]
[311146671,1704930668970,-500.0,0.00043987,37]
[311146672,1704930668980,-200.0,0.00043987,23]
[311146673,1704930668990,-150.0,0.0004399,120]
[311146674,1704930669001,-150.0,0.0004399,120]
[311146675,1704930669011,-266.44,0.0004399,120]
[311146676,1704930669029,-396.0,0.0004399,120]
[311146677,1704930669040,-43259.0,0.0004399,120]
[311146678,1704930669055,-220.0,0.00043997,28]
[311146679,1704930669065,-150.38353361,0.00043998,7]
[311146680,1704930669075,-500.0,0.00043999,30]
[311146681,1704930669095,-500.0,0.00043999,30]
[311146682,1704930669107,-500.0,0.00043999,30]
[311146683,1704930669117,-500.0,0.00043999,30]
[311146684,1704930669128,-1589.11633022,0.00043999,30]
[311146685,1704930669138,-1635.94872997,0.00043999,30]
[311146686,1704930669149,-21190.0,0.00043999,30]
[311146687,1704930669158,-161.10808129,0.00043999,30]
[311146688,1704930669168,-100000.0,0.00044,4]
[311146689,1704930669178,-300.0,0.00044,45]
[311146690,1704930669200,-20725.43261627,0.00044,10]
[311146691,1704930669211,-50000.0,0.00044,10]
[311146692,1704930669238,-150.0,0.00044,120]
[311146693,1704930669259,-204.9100045,0.00044,7]
[311146694,1704930669281,-10786.07079216,0.00044,120]
[311146695,1704930669299,-155.73158699,0.00044,120]
[311146696,1704930669316,-1187.06630576,0.00044,32]
[311146697,1704930669328,-968.36157233,0.00044,32]
[311146698,1704930669340,-250.0,0.00044,7]
[311146699,1704930669350,-2144.0,0.00044,30]
[311146700,1704930669361,-10504.64405156,0.00044,120]
[311146701,1704930669370,-21749.25802774,0.00044,80]
[311146702,1704930669381,-10039.47165856,0.00044,30]
[311146703,1704930669392,-41770.38291876,0.00044,30]
[311146704,1704930669402,-800.0,0.00044,2]
[311146705,1704930669413,-2905.44477876,0.00044,15]
[311146706,1704930669423,-2110.0,0.00044,15]
[311146707,1704930669433,-9500.0,0.00044,60]
[311146708,1704930669443,-23287.09,0.00044,10]
[311146709,1704930669454,-206034.4,0.00044,10]
[311146710,1704930669468,-80036.96662839,0.00044,8]
[311146711,1704930669479,-745.592742,0.00044,30]
[311146712,1704930669490,-141809.95979907,0.00044,31]
[311146713,1704930669502,-1300.0,0.00044,30]
[311146714,1704930669526,-4287.0,0.00044,120]
[311146715,1704930669536,-8000.0,0.00044,30]
[311146716,1704930669546,-17088.53092649,0.00044,120]
[311146717,1704930669556,-798.5,0.00044,120]
[311146718,1704930669566,-312.6493834,0.00044,19]
[311146719,1704930669576,-15165.6,0.00044,60]
[311146720,1704930669589,-5868.0,0.00044,120]
[311146721,1704930669600,-10000.0,0.00044,2]
[311146722,1704930669613,-1000.0,0.00044,2]
[311146723,1704930669623,-1000.0,0.00044,2]
[311146724,1704930669642,-883.6235,0.00044,2]
[311146725,1704930669658,-1000.0,0.00044,2]
[311146726,1704930669671,-82336.70102486,0.00044,120]
[311146727,1704930669681,-1029.1739264,0.00044,30]
[311146728,1704930669691,-2000.0,0.00044,10]
[311146729,1704930669701,-252.86,0.00044,10]
[311146730,1704930669711,-901.95513024,0.00044,4]
[311146731,1704930669724,-12625.0,0.00044,2]
[311146732,1704930669734,-9112.85336241,0.00044,2]
[311146733,1704930669743,-80184.25365802,0.00044,120]
[311146734,1704930669753,-14171.27270395,0.00044,45]
[311146735,1704930669763,-1733.0,0.00044,120]
[311146736,1704930669774,-1953.45,0.00044,7]
[311146737,1704930669783,-150.0,0.00044052,2]
[311146738,1704930669793,-547.78,0.00044082,30]
[311146739,1704930669803,-254.33188432,0.00044082,30]
[311146740,1704930669812,-500.0,0.00044082,30]
[311146741,1704930669821,-262.86,0.00044085,15]
[311146742,1704930669831,-150.99155862,0.00044093,22]
[311146743,1704930669841,-3833.28,0.000441,7]
[311146744,1704930669850,-200.0,0.000441,2]
[311146745,1704930669859,-200.0,0.000441,2]
[311146746,1704930669869,-2022.4,0.00044109,30]
[311146747,1704930669878,-500.0,0.00044109,30]
[311146748,1704930669888,-770.3,0.00044109,7]
[311146749,1704930669897,-685.92,0.00044109,30]
[311146750,1704930669908,-688.82,0.00044109,30]
[311146751,1704930669918,-721.23,0.00044109,30]
[311146752,1704930669927,-524.91,0.00044109,2]
[311146753,1704930669938,-699.67,0.00044109,30]
[311146754,1704930669948,-554.25,0.00044109,30]
[311146755,1704930669958,-557.24,0.00044109,30]
[311146756,1704930669970,-544.66,0.00044109,30]
[311146757,1704930669979,-1352.01,0.00044109,30]
[311146758,1704930669990,-980.16,0.00044109,30]
[311146759,1704930670000,-500.0,0.00044109,30]
[311146760,1704930670010,-500.0,0.00044109,30]
[311146761,1704930670020,-1117.31,0.00044109,30]
[311146762,1704930670029,-507.48,0.00044109,30]
[311146763,1704930670039,-758.69,0.00044109,30]
[311146764,1704930670049,-506.09,0.00044109,30]
[311146765,1704930670059,-532.71,0.00044109,30]
[311146766,1704930670068,-746.81,0.00044109,30]
[311146767,1704930670078,-584.0,0.00044109,30]
[311146768,1704930670087,-818.52,0.00044109,30]
[311146769,1704930670098,-544.62,0.00044109,30]
[311146770,1704930670108,-701.9,0.00044109,30]
[311146771,1704930670118,-1156.27,0.00044109,30]
[311146772,1704930670128,-192.97526213,0.00044109,30]
[311146773,1704930670137,-969.46,0.00044109,30]
[311146774,1704930670147,-1923.82,0.00044109,30]
[311146775,1704930670157,-524.28,0.00044109,30]
[311146776,1704930670167,-535.15,0.00044109,30]
[311146777,1704930670177,-522.94,0.00044109,30]
[311146778,1704930670187,-500.0,0.00044109,30]
[311146779,1704930670198,-1192.59,0.00044109,30]
[311146780,1704930670208,-669.83,0.00044109,30]
[311146781,1704930670221,-500.0,0.00044109,30]
[311146782,1704930670231,-695.51,0.00044109,30]
[311146783,1704930670241,-668.02,0.00044109,30]
[311146784,1704930670252,-552.24,0.00044109,30]
[311146785,1704930670261,-1038.02,0.00044109,30]
[311146786,1704930670271,-1139.63,0.00044109,30]
[311146787,1704930670281,-1600.05139384,0.0004413,120]
[311146788,1704930670291,-500.0,0.00044164,30]
[311146789,1704930670301,-150.38353361,0.0004418,7]
[311146790,1704930670311,-604.0,0.00044187,7]
[311146791,1704930670322,-300.0,0.00044192,5]
[311146792,1704930670333,-300.0,0.00044192,5]
[311146793,1704930670343,-346.10137,0.000442,22]
[311146794,1704930670354,-500.0,0.00044246,30]
[311146795,1704930670363,-10818.0,0.0004429,3]
[311146796,1704930670376,-524.43924069,0.00044328,30]
[311146797,1704930670387,-167.52,0.00044329,30]
[311146798,1704930670397,-1998.08,0.0004435,2]
[311146799,1704930670411,-45521.4001843,0.00044353,2]
[311146800,1704930670431,-1457.5599127,0.00044353,2]
[311146801,1704930670442,-2928.0450035,0.00044353,2]
[311146802,1704930670453,-56677.5631918,0.00044353,2]
[311146803,1704930670467,-13329.7766793,0.00044353,2]
[311146804,1704930670477,-35234.3987002,0.0004437,2]
[311146805,1704930670488,-1128.1781071,0.0004437,2]
[311146806,1704930670498,-2266.3605392,0.0004437,2]
[311146807,1704930670508,-43869.4734954,0.0004437,2]
[311146808,1704930670518,-10434.5948171,0.0004437,2]
[311146809,1704930670528,-2022.4,0.00044383,30]
[311146810,1704930670539,-500.0,0.00044383,30]
[311146811,1704930670550,-770.3,0.00044383,7]
[311146812,1704930670560,-685.92,0.00044383,30]
[311146813,1704930670570,-688.82,0.00044383,30]
[311146814,1704930670581,-721.23,0.00044383,30]
[311146815,1704930670616,-524.91,0.00044383,2]
[311146816,1704930670625,-699.67,0.00044383,30]
[311146817,1704930670635,-554.25,0.00044383,30]
[311146818,1704930670644,-557.24,0.00044383,30]
[311146819,1704930670653,-544.66,0.00044383,30]
[311146820,1704930670664,-1352.01,0.00044383,30]
[311146821,1704930670674,-980.16,0.00044383,30]
[311146822,1704930670683,-500.0,0.00044383,30]
[311146823,1704930670693,-637.75226659,0.00044383,30]
[311146824,1704930670702,-1117.31,0.00044383,30]
[311146825,1704930670713,-507.48,0.00044383,30]
[311146826,1704930670723,-758.69,0.00044383,30]
[311146827,1704930670733,-506.09,0.00044383,30]
[311146828,1704930670743,-532.71,0.00044383,30]
[311146829,1704930670757,-746.81,0.00044383,30]
[311146830,1704930670766,-584.0,0.00044383,30]
[311146831,1704930670775,-818.52,0.00044383,30]
[311146832,1704930670785,-544.62,0.00044383,30]
[311146833,1704930670794,-701.9,0.00044383,30]
[311146834,1704930670804,-1156.27,0.00044383,30]
[311146835,1704930670814,-969.46,0.00044383,30]
[311146836,1704930670824,-1923.82,0.00044383,30]
[311146837,1704930670834,-535.15,0.00044383,30]
[311146838,1704930670844,-522.94,0.00044383,30]
[311146839,1704930670853,-500.0,0.00044383,30]
[311146840,1704930670862,-1192.59,0.00044383,30]
[311146841,1704930670872,-669.83,0.00044383,30]
[311146842,1704930670881,-500.0,0.00044383,30]
[311146843,1704930670891,-695.51,0.00044383,30]
[311146844,1704930670901,-668.02,0.00044383,30]
[311146845,1704930670910,-552.24,0.00044383,30]
[311146846,1704930670920,-1038.02,0.00044383,30]
[311146847,1704930670930,-1139.63,0.00044383,30]
[311146848,1704930670940,-2319329.54992577,0.00044384,12]
[311146849,1704930670950,-4507.0,0.0004439,3]
[311146850,1704930670960,-1000.0,0.000444,30]
[311146851,1704930670973,-965690.0,0.000444,30]
[311146852,1704930670984,-5000.0,0.000444,2]
[311146853,1704930670997,-5145.54559281,0.000444,28]
[311146854,1704930671008,-5140.0,0.000444,12]
[311146855,1704930671017,-178.0,0.00044402,90]
[311146856,1704930671027,-21190.0,0.00044439,30]
[311146857,1704930671037,-24947.3972161,0.0004447,2]
[311146858,1704930671047,-798.7963015,0.0004447,2]
[311146859,1704930671056,-1604.6760748,0.0004447,2]
[311146860,1704930671066,-10542.8456019,0.0004447,2]
[311146861,1704930671486,-533.0,0.00038345,10]
[311146862,1704930671498,-433.21,0.00038345,10]
[311146863,1704930671508,-457.1,0.00038356,4]
[311146864,1704930671518,-355.00761528,0.00038999,4]
[311146865,1704930671527,-293.6571172,0.00038999,4]
[311146866,1704930671537,-398.21046791,0.00038999,4]
[311146867,1704930671547,-1042.56,0.00039452,4]
[311146868,1704930671557,-1042.56,0.00039726,4]
[311146869,1704930671566,-1042.56,0.0004,4]
[311146870,1704930671576,-814.42,0.00040211,2]
[311146871,1704930671586,-1042.56,0.00040273,4]
[311146872,1704930671595,-1042.56,0.00040547,4]
[311146873,1704930671605,-2583.43393757,0.00040637,5]
[311146874,1704930671614,-1635.48,0.00041369,30]
[311146875,1704930671627,-579.42040279,0.00041643,30]
[311146876,1704930671682,-1042.56,0.00040821,4]
[311146877,1704930671692,-158.63959721,0.00041643,30]
[311146878,1704930671702,-1617.14035027,0.00041643,30]
[311146879,1704930671718,-18.33964973,0.00041643,30]
[311146880,1704930671728,-738.06,0.00041917,30]
[311146881,1704930671738,-1635.48,0.00041917,30]
[311146882,1704930671748,-152.14612084,0.00041999,7]
[311146883,1704930671757,-170.6616291,0.00041999,7]
[311146884,1704930671767,-738.06,0.00042191,30]
[311146885,1704930671777,-1635.48,0.00042191,30]
[311146886,1704930671787,-160.0,0.00042288,90]
[311146887,1704930671797,-738.06,0.00042465,30]
[311146888,1704930671806,-1635.48,0.00042465,30]
[311146889,1704930671817,-738.06,0.00042739,30]
[311146890,1704930671827,-738.06,0.00043013,30]
[311146891,1704930671836,-150.0,0.00043973,2]
[311146892,1704930671845,-10095.36260033,0.0004447,2]
[311146893,1704930671856,-921.20000112,0.0004447,2]
[311146894,1704930671867,-9501.97559555,0.0004447,2]
[311146895,1704930671877,-895.63369708,0.0004447,2]
[311146896,1704930671887,-3433.32093564,0.0004447,2]
[311146897,1704930671899,-3210.45832208,0.0004447,2]
[311146898,1704930671909,-1619.2475471,0.0004447,2]
[311146899,1704930671920,-13484.38571719,0.0004449,3]
[311146900,1704930671936,-1635.48,0.00042739,30]
[311146901,1704930671946,-628.84398325,0.0004449,3]
[311146902,1704930671959,-3675.97230468,0.0004449,3]
[311146903,1704930671976,-1355.28117067,0.0004449,3]
[311146904,1704930671997,-1042.56,0.00041095,30]
[311146905,1704930672007,-124.9704,0.00042216,5]
[311146906,1704930672220,-150.0,0.00037175,2]
[311146907,1704930672231,-290.14511731,0.0004,30]
[311146908,1704930672244,-209.85488269,0.0004,30]
[311146909,1704930672254,-150.0,0.00040211,2]
[311146910,1704930672268,-1042.56,0.00041369,30]
[311146911,1704930672279,-1042.56,0.00041643,30]
[311146912,1704930672289,-1042.56,0.00041917,30]
[311146913,1704930672299,-1042.56,0.00042191,30]